bitfinex/quotes_ETHUSD_20230702
["timestamp","ask_amount","ask_price","bid_price","bid_amount"]
[1688287068081,0.48,1917.2,1917.0,10.43766053]
[1688287068353,5.69567,1917.3,1917.0,0.00471053]
[1688287068563,11.43289,1917.3,1917.0,0.00471053]
[1688287069318,16.72824184,1917.3,1917.0,0.00471053]
[1688287069717,14.12041184,1917.3,1917.0,0.00471053]
[1688287073989,16.72824184,1917.3,1917.0,0.00471053]
[1688287074188,1.67282418,1917.2,1917.0,0.00471053]
[1688287074343,5.21621,1917.1,1917.0,0.00471053]
[1688287076685,4.95386866,1917.1,1917.0,0.00471053]
[1688287080645,5.21606,1917.2,1917.0,5.22119053]
[1688287080811,0.48,1917.3,1917.0,5.22119053]
[1688287081017,10.91103,1917.4,1917.0,10.43767053]
[1688287081242,14.85318484,1917.4,1917.0,10.43767053]
[1688287081615,0.48,1917.4,1917.0,10.43767053]
[1688287081818,0.48,1917.4,1917.0,13.04591053]
[1688287082020,0.48,1917.5,1917.0,13.04591053]
[1688287082232,3.16752184,1917.5,1917.0,13.04591053]
[1688287082433,10.43091,1917.4,1917.0,10.43767053]
[1688287083545,10.43091,1917.4,1917.0,11.99462158]
[1688287088462,10.43091,1917.4,1917.0,10.43767053]
[1688287104678,10.43091,1917.4,1917.0,12.18597053]
[1688287108658,13.0386,1917.4,1917.0,6.96949053]
[1688287110551,13.03982,1917.2,1917.0,0.00471053]
[1688287110751,0.48,1917.1,1917.0,0.00471053]
[1688287110950,0.48,1917.1,1917.0,5.22119053]
[1688287111177,0.48,1917.1,1917.0,0.00471053]
[1688287112984,5.69621,1917.1,1917.0,0.00471053]
[1688287115693,29.13921,1917.1,1917.0,0.00471053]
[1688287118783,43.08655584,1917.1,1917.0,0.00471053]
[1688287119290,44.70095584,1917.1,1917.0,0.00471053]
[1688287119682,45.51095584,1917.1,1917.0,0.00471053]
[1688287119879,45.51095584,1917.1,1916.6,2.5466]
[1688287120085,45.51095584,1917.1,1916.6,2.96205491]
[1688287120287,4.55109558,1917.0,1916.6,2.96205491]
[1688287120504,10.91362,1916.9,1916.6,2.96205491]
[1688287120931,10.91362,1916.9,1916.7,0.0043677]
[1688287122030,10.91362,1916.9,1916.6,2.5466]
[1688287123006,10.91362,1916.9,1916.7,0.0043677]
[1688287123632,2.68752184,1916.8,1916.7,0.0043677]
[1688287123773,13.60156184,1916.8,1916.7,0.0043677]
[1688287123980,13.60156184,1916.8,1916.6,2.5466]
[1688287124177,0.48,1916.7,1916.6,2.5466]
[1688287124373,5.6973,1916.7,1916.6,2.5466]
[1688287124619,0.48,1916.7,1916.6,2.5466]
[1688287124823,5.6973,1916.7,1916.6,2.5466]
[1688287125024,5.6973,1916.7,1916.6,2.55097677]
[1688287125334,0.48,1916.7,1916.6,2.55097677]
[1688287125678,5.6973,1916.7,1916.6,2.55097677]
[1688287125917,7.05748418,1916.7,1916.6,2.55097677]
[1688287126093,12.27478418,1916.7,1916.6,0.00437677]
[1688287126888,12.27478418,1916.7,1916.4,8.24391404]
[1688287127290,10.9146,1916.7,1916.4,8.24391404]
[1688287127893,10.9146,1916.7,1916.5,0.00438583]
[1688287135112,13.52325,1916.7,1916.5,0.00438583]
[1688287137330,15.73144184,1916.6,1916.5,0.00438583]
[1688287137506,16.21144184,1916.6,1916.5,0.00438583]
[1688287137832,18.29729102,1916.6,1916.5,0.00438583]
[1688287138033,18.29729102,1916.6,1916.2,2.7619]
[1688287138338,10.43622,1916.4,1916.2,2.7619]
[1688287138514,0.48,1916.3,1916.2,2.7619]
[1688287138737,0.48,1916.3,1916.2,7.98056]
[1688287138935,5.69813,1916.4,1916.2,7.98489207]
[1688287139137,10.91642,1916.4,1916.2,2.76623207]
[1688287139349,2.68752184,1916.3,1916.2,0.00433207]
[1688287139657,16.21347184,1916.3,1916.2,0.00433207]
[1688287139826,16.21347184,1916.3,1916.1,0.1]
[1688287140025,2.10134718,1916.2,1916.1,0.1]
[1688287140348,17.83551902,1916.2,1916.1,0.1]
[1688287140548,15.22618902,1916.2,1916.1,0.1]
[1688287141022,15.22618902,1916.2,1916.1,0.10434115]
[1688287141227,17.83551902,1916.2,1916.1,0.10434115]
[1688287144718,7.32000718,1916.2,1916.1,0.10434115]
[1688287144917,5.69866,1916.2,1916.1,0.10434115]
[1688287147785,10.91732,1916.2,1916.1,0.10434115]
[1688287149768,5.69866,1916.2,1916.1,0.10434115]
[1688287150671,10.91732,1916.2,1916.1,0.10434115]
[1688287152469,23.443,1916.3,1916.1,0.10434115]
[1688287152676,23.44057647,1916.3,1916.1,5.32324115]
[1688287152862,23.44057647,1916.3,1916.1,0.38820411]
[1688287153554,23.44057647,1916.3,1916.1,0.1]
[1688287153757,28.65908647,1916.3,1916.1,0.1]
[1688287153959,28.65908647,1916.3,1916.2,0.00423484]
[1688287154774,23.44057647,1916.3,1916.2,0.00423484]
[1688287154975,23.44057647,1916.3,1916.1,0.1]
[1688287155859,23.44057647,1916.3,1916.2,0.00423484]
[1688287156980,23.44057647,1916.3,1916.1,0.1]
[1688287157182,23.44057647,1916.3,1916.1,1.512289]
[1688287157393,23.44057647,1916.3,1916.1,6.731199]
[1688287157982,23.44057647,1916.3,1916.2,0.00423484]
[1688287158878,23.44057647,1916.3,1916.1,5.31891]
[1688287159893,23.44057647,1916.3,1916.2,0.00423484]
[1688287160894,23.44057647,1916.3,1916.1,0.1]
[1688287161881,23.44057647,1916.3,1916.2,0.00423484]
[1688287162987,23.44057647,1916.3,1916.1,0.1]
[1688287163925,23.44057647,1916.3,1916.2,0.00423484]
[1688287164222,28.65895647,1916.3,1916.2,0.00423484]
[1688287164895,28.65895647,1916.3,1916.1,0.1]
[1688287166122,28.65895647,1916.3,1916.2,0.00423484]
[1688287166499,39.95256696,1916.3,1916.2,0.00423484]
[1688287166847,40.43256696,1916.3,1916.2,0.00423484]
[1688287166995,40.43256696,1916.3,1916.1,0.1]
[1688287167191,0.48,1916.2,1916.1,0.1]
[1688287167552,5.69866,1916.2,1916.1,0.1]
[1688287167885,5.69866,1916.2,1916.1,0.10424391]
[1688287168690,10.91732,1916.2,1916.1,0.10424391]
[1688287168917,15.2215567,1916.2,1916.1,0.10424391]
[1688287172704,20.51840854,1916.2,1916.1,0.10424391]
[1688287173011,20.51840854,1916.2,1916.1,0.1]
[1688287175038,20.51840854,1916.2,1916.1,0.10424391]
[1688287181245,17.90907854,1916.2,1916.1,0.10424391]
[1688287181446,13.60484184,1916.2,1916.1,0.10424391]
[1688287181753,3.16752184,1916.2,1916.1,0.10424391]
[1688287181916,13.60484184,1916.2,1916.1,0.10424391]
[1688287185733,3.16752184,1916.2,1916.1,0.10424391]
[1688287185914,23.44057647,1916.3,1916.1,0.10424391]
[1688287186320,23.44057647,1916.3,1916.1,2.72404391]
[1688287194180,33.87743647,1916.3,1916.1,2.72404391]
[1688287206797,8.65252184,1916.2,1916.1,0.10424391]
[1688287206953,24.69917184,1916.2,1916.1,0.10424391]
[1688287207157,5.985,1916.0,1915.0,2.01319115]
[1688287207382,2.68752184,1915.5,1915.1,5.22161]
[1688287207654,13.12864184,1915.5,1915.1,2.7625]
[1688287207854,13.60864184,1915.5,1915.2,0.41092725]
[1688287208109,16.21892184,1915.5,1915.4,0.01007895]
[1688287208251,2.0,1916.1,1915.4,5.23091895]
[1688287208252,5.21911,1916.1,1915.4,5.23091895]
[1688287208458,2.68752184,1916.0,1915.4,1.75086561]
[1688287208659,10.43938,1915.9,1915.4,12.19249561]
[1688287208891,7.90721184,1915.9,1915.5,2.7625]
[1688287209189,7.90721184,1915.9,1915.6,5.22024]
[1688287209190,5.21969,1915.9,1915.6,5.22024]
[1688287209687,5.21909,1916.1,1915.6,10.44053]
[1688287209852,3.16752184,1916.0,1915.6,10.44053]
[1688287210055,13.60606184,1916.0,1915.7,0.00394674]
[1688287211069,13.60606184,1916.0,1915.6,10.44053]
[1688287211475,13.60606184,1916.0,1915.6,5.22024]
[1688287211977,16.21566184,1916.0,1915.7,0.00395053]
[1688287212184,8.17252184,1915.8,1915.7,0.00395053]
[1688287212387,17.03189184,1915.8,1915.7,0.00395053]
[1688287212593,16.21689184,1915.8,1915.7,0.00395053]
[1688287212970,16.21689184,1915.8,1915.4,0.0060898]
[1688287213155,10.44112,1915.5,1915.4,0.0060898]
[1688287213356,15.73102102,1915.5,1915.4,0.0060898]
[1688287214061,15.73102102,1915.5,1915.4,0.01006298]
[1688287215156,18.34130102,1915.5,1915.4,0.01006298]
[1688287217964,19.15630102,1915.5,1915.4,0.01006298]
[1688287219088,24.64130102,1915.5,1915.4,0.01006298]
[1688287219405,29.86186102,1915.5,1915.4,0.01006298]
[1688287219762,24.64130102,1915.5,1915.4,0.01006298]
[1688287219961,10.03046102,1915.5,1915.4,0.0060898]
[1688287220220,13.12864184,1915.5,1915.4,0.0060898]
[1688287220381,36.56914184,1915.5,1915.4,0.0060898]
[1688287220707,31.34858184,1915.5,1915.4,0.0060898]
[1688287220857,26.12802184,1915.5,1915.4,0.01006377]
[1688287221060,31.34858184,1915.5,1915.4,0.01006377]
[1688287221261,36.56914184,1915.5,1915.4,0.01006377]
[1688287221460,40.48707102,1915.5,1915.4,0.01006377]
[1688287222279,40.96707102,1915.5,1915.4,0.01006377]
[1688287222789,46.45207102,1915.5,1915.4,0.01006377]
[1688287222984,40.96707102,1915.5,1915.4,0.01006377]
[1688287225366,37.04914184,1915.5,1915.4,0.01006377]
[1688287225905,26.60802184,1915.5,1915.4,0.01006377]
[1688287226880,23.4405,1915.5,1915.4,0.01006377]
[1688287227072,23.4405,1915.5,1915.4,10.45174377]
[1688287227288,23.4405,1915.5,1915.4,5.23090377]
[1688287230732,23.4405,1915.5,1915.4,13.06216377]
[1688287230899,23.4405,1915.5,1915.4,14.45153535]
[1688287231305,23.4405,1915.5,1915.4,0.01006377]
[1688287231895,23.4405,1915.5,1915.4,0.0060898]
[1688287233187,23.4405,1915.5,1915.4,5.2269298]
[1688287237197,23.4405,1915.5,1915.4,10.4477698]
[1688287239239,23.4405,1915.5,1915.4,0.0060898]
[1688287239440,23.9205,1915.5,1915.4,0.0060898]
[1688287242245,27.356633,1915.5,1915.4,0.0060898]
[1688287242432,32.577193,1915.5,1915.4,0.0060898]
[1688287243112,29.14106,1915.5,1915.4,0.0060898]
[1688287247928,37.04914184,1915.5,1915.4,0.0060898]
[1688287248432,31.82858184,1915.5,1915.4,0.0060898]
[1688287248632,26.60802184,1915.5,1915.4,0.0060898]
[1688287248832,31.82858184,1915.5,1915.4,0.0060898]
[1688287249148,29.79088002,1915.5,1915.4,0.0060898]
[1688287249522,35.01144002,1915.5,1915.4,0.0060898]
[1688287249775,40.23200002,1915.5,1915.4,0.0060898]
[1688287251343,37.04914184,1915.5,1915.4,0.0060898]
[1688287254265,23.4405,1915.5,1915.4,0.55153561]
[1688287254440,23.4405,1915.5,1915.4,0.0060898]
[1688287256865,28.66106,1915.5,1915.4,0.0060898]
[1688287260159,23.4405,1915.5,1915.4,0.8210898]
[1688287263684,23.4405,1915.5,1915.4,0.0060898]
[1688287264492,23.4405,1915.5,1915.4,5.2269298]
[1688287264856,23.4405,1915.5,1915.4,0.0060898]
[1688287266368,23.4405,1915.5,1915.4,7.16023678]
[1688287266812,23.4405,1915.5,1915.4,14.99149678]
[1688287267275,23.4405,1915.5,1915.4,15.89862436]
[1688287274293,23.4405,1915.5,1915.4,14.99149678]
[1688287274994,23.4405,1915.5,1915.4,15.89862585]
[1688287276036,23.4405,1915.5,1915.4,14.99149678]
[1688287277618,23.4405,1915.5,1915.4,15.89862565]
[1688287278413,23.4405,1915.5,1915.4,21.92907146]
[1688287278609,23.4405,1915.5,1915.4,16.44407146]
[1688287278921,23.4405,1915.5,1915.4,21.38362565]
[1688287282490,23.4405,1915.5,1915.4,24.07114749]
[1688287282691,23.4405,1915.5,1915.4,24.6165933]
[1688287282909,23.4405,1915.5,1915.4,28.97731887]
[1688287287112,23.4405,1915.5,1915.4,28.43187306]
[1688287288399,23.4405,1915.5,1915.4,25.74435122]
[1688287288601,23.4405,1915.5,1915.4,20.25935122]
[1688287288938,23.4405,1915.5,1915.4,18.89862565]
[1688287289608,23.4405,1915.5,1915.4,24.38362565]
[1688287289795,23.4405,1915.5,1915.4,25.74435122]
[1688287289999,23.4405,1915.5,1915.4,26.28979703]
[1688287290208,23.4405,1915.5,1915.4,26.16930912]
[1688287291602,23.4405,1915.5,1915.4,20.68430912]
[1688287291943,23.4405,1915.5,1915.4,18.51658355]
[1688287296638,23.4405,1915.5,1915.4,19.32358355]
[1688287296844,23.4405,1915.5,1915.4,28.85683096]
[1688287297246,23.4405,1915.5,1915.4,20.68430912]
[1688287297415,23.4405,1915.5,1915.4,18.51658355]
[1688287300049,23.4405,1915.5,1915.4,19.32858355]
[1688287300624,23.4405,1915.5,1915.4,20.68930912]
[1688287301928,23.4405,1915.5,1915.4,21.23475493]
[1688287302446,23.4405,1915.5,1915.4,19.32858355]
[1688287303533,23.4405,1915.5,1915.4,18.51658355]
[1688287306436,23.4405,1915.5,1915.4,17.39027657]
[1688287311018,23.4405,1915.5,1915.4,14.39027657]
[1688287312158,23.4405,1915.5,1915.4,6.55901657]
[1688287312325,23.4405,1915.5,1915.4,0.0060898]
[1688287315047,23.4405,1915.5,1915.4,5.2269298]
[1688287315355,36.22567,1915.5,1915.4,0.0060898]
[1688287315589,36.70567,1915.5,1915.4,0.0060898]
[1688287316074,31.48511,1915.5,1915.4,0.0060898]
[1688287319462,31.00511,1915.5,1915.4,0.0060898]
[1688287319671,23.4405,1915.5,1915.4,5.2269298]
[1688287321669,28.66106,1915.5,1915.4,5.2269298]
[1688287322464,23.4405,1915.5,1915.4,5.2269298]
[1688287324148,28.66106,1915.5,1915.4,5.2269298]
[1688287324940,28.66106,1915.5,1915.4,0.0060898]
[1688287327280,28.66106,1915.5,1915.4,5.2269298]
[1688287327574,23.4405,1915.5,1915.4,5.2269298]
[1688287327747,32.529203,1915.5,1915.4,0.0060898]
[1688287330772,37.749763,1915.5,1915.4,0.0060898]
[1688287330972,41.175043,1915.5,1915.4,0.0060898]
[1688287331365,38.564763,1915.5,1915.4,0.0060898]
[1688287332279,35.007503,1915.5,1915.4,0.0060898]
[1688287333283,34.192503,1915.5,1915.4,0.0060898]
[1688287333757,27.308643,1915.5,1915.4,5.2269298]
[1688287333947,23.9205,1915.5,1915.4,5.2269298]
[1688287335287,23.4405,1915.5,1915.4,5.2269298]
[1688287335612,23.4405,1915.5,1915.4,13.0581898]
[1688287338965,23.4405,1915.5,1915.4,10.4477698]
[1688287341169,23.4405,1915.5,1915.4,0.0060898]
[1688287341363,23.4405,1915.5,1915.4,5.2269298]
[1688287341567,23.4405,1915.5,1915.4,10.4477698]
[1688287348006,41.52347184,1915.5,1915.4,0.0060898]
[1688287348178,42.00347184,1915.5,1915.4,0.0060898]
[1688287348874,42.81847184,1915.5,1915.4,0.0060898]
[1688287357708,44.43437184,1915.5,1915.4,0.0060898]
[1688287364112,43.61937184,1915.5,1915.4,0.0060898]
[1688287367830,49.10437184,1915.5,1915.4,0.0060898]
[1688287370391,49.91937184,1915.5,1915.4,0.0060898]
[1688287372518,49.10437184,1915.5,1915.4,0.0060898]
[1688287373925,43.61937184,1915.5,1915.4,0.0060898]
[1688287374130,49.10437184,1915.5,1915.4,0.0060898]
[1688287376789,43.61937184,1915.5,1915.4,0.0060898]
[1688287376989,44.02741293,1915.5,1915.4,0.0060898]
[1688287377293,42.41151293,1915.5,1915.4,0.0060898]
[1688287377490,39.32123293,1915.5,1915.4,0.0060898]
[1688287377732,39.17942184,1915.5,1915.4,0.0060898]
[1688287379136,39.65942184,1915.5,1915.4,0.0060898]
[1688287382431,41.28852184,1915.5,1915.4,0.0060898]
[1688287383233,46.77352184,1915.5,1915.4,0.0060898]
[1688287385921,47.58852184,1915.5,1915.4,0.0060898]
[1688287386121,55.96038937,1915.5,1915.4,0.0060898]
[1688287387145,42.90898937,1915.5,1915.4,0.0060898]
[1688287387441,55.96038937,1915.5,1915.4,0.0060898]
[1688287387935,56.38589429,1915.5,1915.4,0.0060898]
[1688287393646,58.88589429,1915.5,1915.4,9.8e-06]
[1688287394013,59.10679289,1915.5,1915.4,9.8e-06]
[1688287394511,56.38589429,1915.5,1915.4,9.8e-06]
[1688287394717,58.07089429,1915.5,1915.4,9.8e-06]
[1688287398283,58.88589429,1915.5,1915.4,9.8e-06]
[1688287401070,61.87912532,1915.5,1915.4,9.8e-06]
[1688287402180,59.87912532,1915.5,1915.4,9.8e-06]
[1688287402359,61.65822672,1915.5,1915.4,9.8e-06]
[1688287402672,60.88589429,1915.5,1915.4,9.8e-06]
[1688287403186,59.10679289,1915.5,1915.4,9.8e-06]
[1688287403731,61.10679289,1915.5,1915.4,9.8e-06]
[1688287411046,61.87912532,1915.5,1915.4,9.8e-06]
[1688287414682,59.87912532,1915.5,1915.4,9.8e-06]
[1688287414884,61.87912532,1915.5,1915.4,9.8e-06]
[1688287421209,59.87912532,1915.5,1915.4,9.8e-06]
[1688287421505,61.87912532,1915.5,1915.4,9.8e-06]
[1688287423694,61.06412532,1915.5,1915.4,9.8e-06]
[1688287426375,55.96179429,1915.5,1915.4,9.8e-06]
[1688287426616,48.08992676,1915.5,1915.4,9.8e-06]
[1688287428114,48.56992676,1915.5,1915.4,9.8e-06]
[1688287435959,49.34225919,1915.5,1915.4,9.8e-06]
[1688287436162,51.56315779,1915.5,1915.4,9.8e-06]
[1688287436337,49.56315779,1915.5,1915.4,9.8e-06]
[1688287436542,54.93502532,1915.5,1915.4,9.8e-06]
[1688287437561,56.93502532,1915.5,1915.4,9.8e-06]
[1688287438126,54.93502532,1915.5,1915.4,9.8e-06]
[1688287438329,56.93502532,1915.5,1915.4,9.8e-06]
[1688287438530,54.93502532,1915.5,1915.4,9.8e-06]
[1688287439140,56.93502532,1915.5,1915.4,9.8e-06]
[1688287439727,54.93502532,1915.5,1915.4,9.8e-06]
[1688287440232,56.93502532,1915.5,1915.4,9.8e-06]
[1688287440958,54.71412672,1915.5,1915.4,9.8e-06]
[1688287441159,53.94179429,1915.5,1915.4,9.8e-06]
[1688287441632,55.94179429,1915.5,1915.4,9.8e-06]
[1688287442141,56.16269289,1915.5,1915.4,9.8e-06]
[1688287448445,56.13785064,1915.5,1915.4,9.8e-06]
[1688287467952,55.91695204,1915.5,1915.4,9.8e-06]
[1688287471372,56.13793595,1915.5,1915.4,9.8e-06]
[1688287487025,55.91695204,1915.5,1915.4,9.8e-06]
[1688287497332,56.13793595,1915.5,1915.4,9.8e-06]
[1688287504344,55.91695204,1915.5,1915.4,9.8e-06]
[1688287506241,56.13793595,1915.5,1915.4,9.8e-06]
[1688287515271,56.91026838,1915.5,1915.4,9.8e-06]
[1688287526966,56.20928447,1915.5,1915.4,9.8e-06]
[1688287527164,48.06508451,1915.5,1915.4,9.8e-06]
[1688287527394,48.83741694,1915.5,1915.4,9.8e-06]
[1688287527601,50.83741694,1915.5,1915.4,9.8e-06]
[1688287528111,51.05840085,1915.5,1915.4,9.8e-06]
[1688287528481,51.53840085,1915.5,1915.4,9.8e-06]
[1688287528799,56.91026838,1915.5,1915.4,9.8e-06]
[1688287528994,54.91026838,1915.5,1915.4,9.8e-06]
[1688287529700,56.91026838,1915.5,1915.4,9.8e-06]
[1688287532020,54.91026838,1915.5,1915.4,9.8e-06]
[1688287532333,56.91026838,1915.5,1915.4,9.8e-06]
[1688287533711,54.91026838,1915.5,1915.4,9.8e-06]
[1688287533911,56.91026838,1915.5,1915.4,9.8e-06]
[1688287534721,58.50706838,1915.5,1915.4,9.8e-06]
[1688287538422,59.92061462,1915.5,1915.4,9.8e-06]
[1688287538733,2.0,1915.3,1915.0,0.10704545]
[1688287538923,26.37487,1914.8,1914.5,4.4014]
[1688287539102,23.86687884,1914.7,1914.5,4.4014]
[1688287539304,21.22939184,1914.7,1914.5,4.4014]
[1688287539502,21.22939184,1914.7,1914.6,0.912]
[1688287540221,5.22168,1915.1,1914.6,1.726]
[1688287540427,0.18752184,1915.0,1914.6,11.36004]
[1688287540737,5.22084,1915.4,1914.9,0.812]
[1688287540910,2.68752184,1915.3,1914.9,5.22203]
[1688287541243,2.68752184,1915.3,1915.2,0.811]
[1688287543248,2.68752184,1915.3,1915.2,1.64255286]
[1688287543414,0.42550492,1915.5,1915.2,1.64255286]
[1688287543608,2.68752184,1915.4,1915.2,0.83155286]
[1688287543825,2.68752184,1915.4,1915.3,0.815]
[1688287544725,3.16752184,1915.4,1915.3,0.815]
[1688287545537,3.16752184,1915.4,1915.3,1.50179229]
[1688287546937,2.68752184,1915.4,1915.3,6.03611]
[1688287547242,13.44036,1915.7,1915.3,0.815]
[1688287547558,3.16752184,1915.6,1915.3,5.22111]
[1688287547715,3.16752184,1915.6,1915.5,0.809]
[1688287551133,8.38781184,1915.6,1915.5,0.809]
[1688287551518,2.68752184,1915.6,1915.5,0.809]
[1688287551724,13.60810184,1915.6,1915.5,0.809]
[1688287552907,8.38781184,1915.6,1915.5,0.809]
[1688287553217,7.90781184,1915.6,1915.5,0.809]
[1688287553722,13.12810184,1915.6,1915.5,0.809]
[1688287553928,7.90781184,1915.6,1915.5,0.809]
[1688287554553,2.68752184,1915.6,1915.5,0.809]
[1688287554715,7.90781184,1915.6,1915.5,0.809]
[1688287554917,2.68752184,1915.6,1915.5,0.809]
[1688287555116,2.68752184,1915.6,1915.5,1.41197]
[1688287557174,7.90781184,1915.6,1915.5,1.41197]
[1688287557314,7.90781184,1915.6,1915.5,0.809]
[1688287558053,2.68752184,1915.6,1915.5,0.809]
[1688287560042,7.90781184,1915.6,1915.5,0.809]
[1688287564657,7.90781184,1915.6,1915.4,0.809]
[1688287564658,13.60810184,1915.6,1915.4,0.809]
[1688287565354,8.38781184,1915.6,1915.4,0.809]
[1688287565647,8.38785184,1915.6,1915.4,1.65028]
[1688287565849,8.38797184,1915.6,1915.4,0.809]
[1688287566223,8.38797184,1915.6,1915.4,6.02981]
[1688287566743,13.60842184,1915.6,1915.4,0.809]
[1688287566951,8.38797184,1915.6,1915.4,0.809]
[1688287567250,8.38781184,1915.6,1915.4,0.809]
[1688287567661,13.60810184,1915.6,1915.4,0.809]
[1688287567977,16.21824184,1915.6,1915.4,0.809]
[1688287568376,0.48,1915.5,1915.4,0.809]
[1688287568579,0.48,1915.5,1915.3,3.1977]
[1688287568580,13.60864184,1915.5,1915.3,3.1977]
[1688287568781,2.68752184,1915.4,1915.3,4.72597329]
[1688287570183,2.68752184,1915.4,1915.3,9.94708329]
[1688287576369,2.68752184,1915.4,1915.3,15.16819329]
[1688287577166,10.44091,1915.6,1915.3,15.16819329]
[1688287577490,2.68752184,1915.5,1915.4,2.32781933]
[1688287577661,2.68752184,1915.5,1915.3,3.1917]
[1688287578253,2.68752184,1915.5,1915.4,0.812]
[1688287578464,2.68752184,1915.5,1915.4,6.03284]
[1688287578685,5.22016,1915.7,1915.4,6.03284]
[1688287578986,2.68752184,1915.6,1915.4,6.03284]
[1688287579182,2.68752184,1915.6,1915.4,7.396494]
[1688287579489,7.90784184,1915.6,1915.4,7.396494]
[1688287582985,7.90784184,1915.6,1915.4,2.175654]
[1688287583290,7.90784184,1915.6,1915.4,0.812]
[1688287583991,2.68752184,1915.6,1915.5,0.809]
[1688287584187,0.03940932,1915.8,1915.5,0.809]
[1688287584376,2.68752184,1915.7,1915.5,6.02954]
[1688287584752,0.03940932,1915.8,1915.5,6.02954]
[1688287585078,7.94670116,1915.8,1915.5,7.154569]
[1688287585276,2.72693116,1915.8,1915.5,7.154569]
[1688287586658,7.94671116,1915.8,1915.5,1.934029]
[1688287589254,2.72693116,1915.8,1915.5,7.154579]
[1688287590594,7.94669116,1915.8,1915.5,7.154579]
[1688287590886,0.03940932,1915.8,1915.6,1.5274579]
[1688287591283,0.03940932,1915.8,1915.6,6.7477479]
[1688287592661,0.03940932,1915.8,1915.6,1.5274579]
[1688287594379,0.03940932,1915.8,1915.7,0.809]
[1688287594977,0.03940932,1915.8,1915.6,11.9709679]
[1688287595192,0.03940932,1915.8,1915.7,7.24566533]
[1688287596360,0.03940932,1915.8,1915.7,12.46568533]
[1688287596997,0.03940932,1915.8,1915.7,20.56069533]
[1688287597173,10.56789514,1916.6,1915.7,20.56069533]
[1688287597386,7.90525184,1916.6,1915.8,3.71896953]
[1688287597577,7.90525184,1916.6,1916.0,10.43818]
[1688287597778,2.68752184,1916.6,1916.0,13.04778]
[1688287597985,5.2176,1916.6,1916.0,13.04778]
[1688287598172,5.2176,1916.6,1916.2,0.815]
[1688287598373,13.12272184,1916.6,1916.3,0.812]
[1688287598578,13.12272184,1916.6,1916.2,11.24593]
[1688287598886,13.54755955,1916.6,1916.2,11.24593]
[1688287599098,13.54755955,1916.6,1916.2,8.30696]
[1688287599406,2.68752184,1916.5,1916.2,2.2795]
[1688287599568,5.21811,1916.4,1916.2,2.2795]
[1688287599772,10.43622,1916.4,1916.2,2.2795]
[1688287600216,13.12374184,1916.4,1916.2,2.2795]
[1688287601177,7.90563184,1916.4,1916.2,2.2795]
[1688287601829,7.90563184,1916.4,1916.2,5.21865]
[1688287604440,7.90563184,1916.4,1916.1,14.81055309]
[1688287604607,7.90563184,1916.4,1916.2,5.21858]
[1688287606484,13.12374184,1916.4,1916.1,14.00359309]
[1688287607922,7.90563184,1916.4,1916.1,14.00359309]
[1688287609622,13.12374184,1916.4,1916.1,8.78499309]
[1688287609938,2.68752184,1916.3,1915.9,5.21937]
[1688287610232,10.43742,1916.2,1915.8,5.21966]
[1688287610434,8.38658184,1916.1,1915.8,5.21966]
[1688287610814,8.38658184,1916.1,1915.8,10.43941]
[1688287611010,13.60564184,1916.1,1915.7,12.79381]
[1688287611219,13.60564184,1916.1,1915.7,14.334205]
[1688287612277,8.38658184,1916.1,1915.7,14.334205]
[1688287612498,16.21497184,1916.1,1915.7,14.334205]
[1688287612748,16.21497184,1916.1,1915.7,6.760245]
[1688287613243,16.21497184,1916.1,1915.7,11.980265]
[1688287613648,16.21497184,1916.1,1915.7,6.760245]
[1688287614350,16.21497184,1916.1,1915.6,7.63136941]
[1688287614554,16.21497184,1916.1,1915.6,12.85157941]
[1688287614854,16.21497184,1916.1,1915.6,12.85182941]
[1688287615638,16.21497184,1916.1,1915.6,7.63153941]
[1688287615839,0.811,1916.0,1915.4,1.6551]
[1688287616047,13.0497,1915.8,1915.4,3.9174]
[1688287616261,15.73722184,1915.8,1915.4,2.2623]
[1688287616537,15.73722184,1915.8,1915.4,7.48313]
[1688287616750,15.73722184,1915.8,1915.4,7.4831]
[1688287616951,2.68752184,1915.7,1915.4,7.4831]
[1688287617127,5.22029,1915.6,1915.4,13.974343]
[1688287618167,13.12786184,1915.7,1915.4,13.974343]
[1688287618366,13.12784184,1915.7,1915.4,13.974343]
[1688287618651,7.90768184,1915.7,1915.4,13.974343]
[1688287618821,7.90768184,1915.7,1915.5,1.3974343]
[1688287619022,7.90768184,1915.7,1915.5,6.6179343]
[1688287619217,13.12784184,1915.7,1915.5,1.3974343]
[1688287619957,13.12784184,1915.7,1915.4,13.974173]
[1688287620253,15.73785184,1915.7,1915.4,8.753373]
[1688287621068,15.73785184,1915.7,1915.4,1.270403]
[1688287621364,15.73785184,1915.7,1915.2,2.26405286]
[1688287622270,15.73785184,1915.7,1915.2,7.48541286]
[1688287622562,15.73785184,1915.7,1915.2,12.70679286]
[1688287623157,15.73785184,1915.7,1915.2,15.30679286]
[1688287623452,15.73785184,1915.7,1915.2,10.08541286]
[1688287623652,15.73785184,1915.7,1915.3,1.00854129]
[1688287624453,15.73785184,1915.7,1915.3,6.22964129]
[1688287626238,15.73785184,1915.7,1915.3,11.45075129]
[1688287629564,15.73785184,1915.7,1915.3,6.22964129]
[1688287629768,2.68752184,1915.7,1915.3,14.87330129]
[1688287630064,28.63559,1915.8,1915.4,1.48733013]
[1688287630241,5.22007,1915.7,1915.5,10.44105]
[1688287632138,10.44014,1915.7,1915.5,5.22051]
[1688287636793,5.22007,1915.7,1915.5,5.22051]
[1688287636953,33.8555,1915.8,1915.5,11.25007]
[1688287637142,33.8555,1915.8,1915.6,1.125007]
[1688287638087,23.4157,1915.8,1915.6,1.125007]
[1688287638244,23.4157,1915.8,1915.6,6.345297]
[1688287639188,28.6355,1915.8,1915.6,6.345297]
[1688287639387,28.6355,1915.8,1915.7,0.6345297]
[1688287640160,23.4157,1915.8,1915.7,0.6345297]
[1688287640461,23.4157,1915.8,1915.7,11.0745697]
[1688287641041,23.4157,1915.8,1915.7,13.6845797]
[1688287642039,22.3921,1915.8,1915.7,19.9765797]
[1688287643164,22.3921,1915.8,1915.7,27.88412154]
[1688287644354,22.3921,1915.8,1915.7,27.90067008]
[1688287645064,22.3921,1915.8,1915.7,30.50067008]
[1688287646394,22.3921,1915.8,1915.7,27.81314824]
[1688287655174,12.85304969,1915.8,1915.7,30.34614038]
[1688287655376,6.86187,1916.9,1916.0,5.485]
[1688287655677,1.645,1916.7,1916.2,10.43699]
[1688287655904,5.21761,1916.6,1916.2,10.43699]
[1688287656378,6.261111,1916.6,1916.2,7.43337]
[1688287656580,15.73152184,1916.6,1916.2,5.21847]